lending/lending_fUSD_20250210
["ID","MTS","AMOUNT","RATE_DAILY","PERIOD"]
[352579350,1739177441130,-688.62,0.00016658,30]
[352579352,1739177441140,-581.76,0.00016681,2]
[352579354,1739177441150,-1149.29,0.00016681,2]
[352579356,1739177441159,-1954.22,0.000167,7]
[352579358,1739177441168,-540.61477194,0.00016711,2]
[352579360,1739177441177,-500.0,0.00016711,2]
[352579362,1739177441186,-665.63,0.00016711,2]
[352579364,1739177441196,-674.66,0.00016711,2]
[352579366,1739177441206,-500.0,0.00016711,2]
[352579368,1739177441215,-187.38,0.00016712,2]
[352579370,1739177441225,-1000.0,0.00016761,2]
[352579372,1739177441234,-474.95,0.00016813,2]
[352579374,1739177441252,-581.76,0.00016818,2]
[352579376,1739177441263,-1149.29,0.00016818,2]
[352579378,1739177441273,-183.29729306,0.00016848,2]
[352579380,1739177441282,-665.63,0.00016848,2]
[352579382,1739177441292,-674.66,0.00016848,2]
[352579384,1739177441301,-500.0,0.00016848,2]
[352579387,1739177441312,-581.94773932,0.00016955,2]
[352579389,1739177441323,-1149.31148373,0.00016955,2]
[352579391,1739177441332,-442.76,0.00016963,2]
[352579393,1739177441341,-163.48,0.00016975,2]
[352579395,1739177441351,-665.63,0.00016985,2]
[352579397,1739177441361,-674.66,0.00016985,2]
[352579399,1739177441371,-500.99650002,0.00016985,2]
[352579401,1739177441380,-12921.16989088,0.00017022,2]
[352579403,1739177441389,-500.0,0.00017029,2]
[352579405,1739177441399,-500.0,0.00017029,2]
[352579407,1739177441408,-445.5181081,0.00017029,2]
[352579409,1739177441417,-174.03,0.00017035,2]
[352579411,1739177441428,-1071.305,0.00017035,2]
[352579413,1739177441437,-152.0,0.00017037,5]
[352579415,1739177441447,-665.63,0.00017122,2]
[352579417,1739177441456,-674.66,0.00017122,2]
[352579419,1739177441466,-211.72,0.00017123,2]
[352579421,1739177441475,-1097.37019845,0.00017205,2]
[352579423,1739177441485,-665.63,0.00017259,2]
[352579425,1739177441496,-674.66,0.00017259,2]
[352579427,1739177441506,-500.0,0.00017277,2]
[352579429,1739177441516,-1000.0,0.00017277,2]
[352579431,1739177441528,-12921.16989088,0.0001732,2]
[352579433,1739177441540,-665.63,0.00017396,2]
[352579435,1739177441550,-674.66,0.00017396,2]
[352579437,1739177441564,-152.0,0.00017493,6]
[352579440,1739177441575,-665.63,0.00017533,2]
[352579442,1739177441585,-674.66,0.00017533,2]
[352579444,1739177441594,-1900.0,0.00017551,2]
[352579446,1739177441604,-12921.16989088,0.00017617,2]
[352579448,1739177441614,-665.63,0.0001767,2]
[352579449,1739177441623,-674.66,0.0001767,2]
[352579452,1739177441633,-150.0,0.00017803,2]
[352579453,1739177441644,-278.44435627,0.00017803,2]
[352579456,1739177441654,-150.26292609,0.00017803,2]
[352579458,1739177441664,-665.63,0.00017807,2]
[352579459,1739177441674,-674.66,0.00017807,2]
[352579461,1739177441683,-2000.0,0.00017867,2]
[352579463,1739177441692,-12921.16989088,0.00017915,2]
[352579465,1739177441702,-665.63,0.00017944,2]
[352579468,1739177441712,-674.66,0.00017944,2]
[352579470,1739177441722,-152.0,0.0001795,7]
[352579472,1739177441732,-665.63,0.00018081,2]
[352579473,1739177441741,-674.66,0.00018081,2]
[352579476,1739177441753,-2000.0,0.00018082,2]
[352579477,1739177441769,-200.0,0.00018082,2]
[352579480,1739177441778,-12921.16989088,0.00018212,2]
[352579482,1739177441788,-665.63,0.00018218,2]
[352579484,1739177441797,-674.66,0.00018218,2]
[352579486,1739177441806,-665.63,0.00018355,2]
[352579488,1739177441816,-674.66,0.00018355,2]
[352579490,1739177441826,-34385.09,0.00018356,2]
[352579492,1739177441836,-500.0,0.00018373,2]
[352579494,1739177441845,-1000.0,0.00018373,2]
[352579496,1739177441856,-152.0,0.00018406,8]
[352579498,1739177441866,-665.63,0.00018492,2]
[352579500,1739177441875,-674.66,0.00018492,2]
[352579502,1739177441885,-12921.16989088,0.0001851,2]
[352579504,1739177441894,-665.63,0.00018629,2]
[352579506,1739177441903,-674.66,0.00018629,2]
[352579508,1739177441913,-1900.0,0.00018647,2]
[352579510,1739177441922,-2000.0,0.00018751,2]
[352579512,1739177441933,-665.63,0.00018766,2]
[352579514,1739177441943,-674.66,0.00018766,2]
[352579516,1739177441952,-888.96,0.00018768,2]
[352579518,1739177441962,-150.0,0.00018792,2]
[352579520,1739177441971,-12921.16989088,0.00018807,2]
[352579522,1739177441981,-152.0,0.00018862,9]
[352579524,1739177441990,-665.63,0.00018903,2]
[352579526,1739177442000,-674.66,0.00018903,2]
[352579528,1739177442010,-432.64540094,0.0001894,3]
[352579530,1739177442019,-18002.59154449,0.0001894,2]
[352579532,1739177442028,-3760927.14556232,0.00019,2]
[352579534,1739177442038,-665.63,0.0001904,2]
[352579536,1739177442048,-674.66,0.0001904,2]
[352579538,1739177442058,-302.03,0.00019064,2]
[352579540,1739177442068,-12921.16989088,0.00019105,2]
[352579542,1739177442077,-11912.27,0.00019151,2]
[352579544,1739177442087,-665.63,0.00019177,2]
[352579546,1739177442097,-674.66,0.00019177,2]
[352579548,1739177442107,-500.0,0.00019178,2]
[352579550,1739177442116,-500.0,0.00019178,2]
[352579552,1739177442126,-500.0,0.00019178,2]
[352579554,1739177442135,-500.0,0.00019178,2]
[352579556,1739177442145,-500.0,0.00019178,2]
[352579558,1739177442155,-500.0,0.00019178,2]
[352579560,1739177442164,-500.0,0.00019178,2]
[352579562,1739177442173,-500.0,0.00019178,2]
[352579564,1739177442183,-500.0,0.00019178,2]
[352579566,1739177442193,-500.0,0.00019178,2]
[352579568,1739177442202,-500.0,0.00019178,2]
[352579570,1739177442211,-500.0,0.00019178,2]
[352579572,1739177442220,-500.0,0.00019178,2]
[352579574,1739177442230,-500.0,0.00019178,2]
[352579576,1739177442239,-500.0,0.00019178,2]
[352579578,1739177442249,-639.42593052,0.00019178,2]
[352579580,1739177442259,-4000.0,0.00019178,2]
[352579582,1739177442268,-3232.57,0.00019178,2]
[352579584,1739177442278,-150.0,0.00019178,2]
[352579586,1739177442287,-688.62,0.00019242,30]
[352579588,1739177442297,-476.0,0.00019301,2]
[352579590,1739177442306,-665.63,0.00019314,3]
[352579591,1739177442315,-674.66,0.00019314,3]
[352579593,1739177442325,-152.0,0.00019319,10]
[352579595,1739177442335,-500.0,0.00019349,2]
[352579598,1739177442345,-150.0,0.00019388,2]
[352579600,1739177442355,-12921.16989088,0.00019402,2]
[352579602,1739177442365,-1500.0,0.00019404,2]
[352579604,1739177442375,-2000.0,0.0001942,2]
[352579606,1739177442384,-665.63,0.00019451,3]
[352579607,1739177442394,-674.66,0.00019451,3]
[352579609,1739177442403,-1000.0,0.00019469,2]
[352579611,1739177442413,-476.0,0.000195,2]
[352579614,1739177442423,-665.64548566,0.00019588,3]
[352579616,1739177442433,-674.7,0.00019588,3]
[352579617,1739177442442,-262.059061,0.000196,2]
[352579619,1739177442452,-825.9558072,0.00019602,2]
[352579621,1739177442461,-500.0,0.00019641,2]
[352579623,1739177442471,-500.0,0.00019641,2]
[352579626,1739177442480,-200.0,0.00019641,2]
[352579628,1739177442490,-500.0,0.00019641,2]
[352579630,1739177442501,-500.0,0.00019641,2]
[352579632,1739177442511,-200.0,0.00019641,2]
[352579634,1739177442520,-500.0,0.00019641,2]
[352579636,1739177442530,-500.0,0.00019641,2]
[352579641,1739177442571,-500.0,0.00019642,2]
[352579643,1739177442581,-2000.0,0.00019642,2]
[352579645,1739177442590,-500.0,0.00019642,2]
[352579647,1739177442601,-500.0,0.00019642,2]
[352579649,1739177442611,-500.0,0.00019642,2]
[352579650,1739177442620,-500.0,0.00019642,2]
[352579652,1739177442630,-500.0,0.00019642,2]
[352579654,1739177442639,-500.0,0.00019642,2]
[352579656,1739177442650,-200.0,0.00019642,2]
[352579658,1739177442660,-200.0,0.00019642,2]
[352579660,1739177442669,-150.0,0.00019683,2]
[352579662,1739177442678,-151.0,0.00019697,2]
[352579664,1739177442687,-476.0,0.00019699,2]
[352579666,1739177442696,-151.0,0.000197,2]
[352579668,1739177442705,-275.47420347,0.000197,2]
[352579670,1739177442715,-3000.0,0.000197,2]
[352579672,1739177442724,-3411.64,0.000197,31]
[352579674,1739177442733,-3411.64,0.000197,31]
[352579676,1739177442742,-3411.64,0.000197,31]
[352579678,1739177442752,-3411.64,0.000197,31]
[352579680,1739177442761,-3411.64,0.000197,31]
[352579682,1739177442770,-3411.64,0.000197,31]
[352579684,1739177442779,-3411.64,0.000197,31]
[352579686,1739177442788,-3411.64,0.000197,31]
[352579688,1739177442797,-3411.64,0.000197,31]
[352579690,1739177442806,-3411.64,0.000197,31]
[352579692,1739177442815,-3411.64,0.000197,31]
[352579694,1739177442824,-3411.64,0.000197,31]
[352579696,1739177442833,-3411.64,0.000197,31]
[352579698,1739177442842,-3411.64,0.000197,31]
[352579700,1739177442851,-3411.64,0.000197,31]
[352579702,1739177442860,-3411.64,0.000197,31]
[352579705,1739177442869,-172.55947856,0.000197,2]
[352579708,1739177442878,-12921.16989088,0.000197,2]
[352579711,1739177442887,-372.6709548,0.000197,2]
[352579713,1739177442896,-1000.0,0.00019712,2]
[352579714,1739177442905,-1000.0,0.00019727,2]
[352579716,1739177442913,-1000.0,0.00019738,2]
[352579718,1739177442922,-1000.0,0.00019742,2]
[352579721,1739177442930,-1000.0,0.00019744,2]
[352579723,1739177442940,-150.0,0.00019758,2]
[352579726,1739177442949,-606.23102769,0.00019759,2]
[352579729,1739177442959,-1000.0,0.00019765,2]
[352579732,1739177442968,-172.55947854,0.00019767,2]
[352579735,1739177442977,-400.0,0.0001977,2]
[352579738,1739177442986,-400.0,0.0001977,2]
[352579741,1739177442995,-300.0,0.0001977,2]
[352579744,1739177443004,-300.0,0.0001977,2]
[352579747,1739177443014,-227.47171877,0.00019773,2]
[352579750,1739177443022,-500.0,0.00019773,2]
[352579752,1739177443032,-3652.61054836,0.00019774,2]
[352579755,1739177443041,-152.0,0.00019775,11]
[352579758,1739177443051,-1500.0,0.0001978,30]
[352579761,1739177443060,-205.00070509,0.00019781,4]
[352579765,1739177443068,-432.64540093,0.00019793,3]
[352579768,1739177443077,-18002.59154448,0.00019793,2]
[352579771,1739177443086,-1155.86473735,0.00019797,4]
[352579774,1739177443095,-269.34340681,0.00019799,3]
[352579777,1739177443105,-500.0,0.00019799,2]
[352579782,1739177443115,-56110.27,0.00019799,2]
[352579786,1739177443124,-1432.43,0.00019799,2]
[352579790,1739177443133,-150.0,0.00019799,2]
[352579794,1739177443142,-300.0,0.00019799,2]
[352579798,1739177443151,-666.0,0.00019799,2]
[352579801,1739177443160,-7364.10367993,0.000198,2]
[352579805,1739177443170,-324615.28084148,0.000198,2]
[352579818,1739177443256,-1000.0,0.00013698,4]
[352579820,1739177443265,-305.19,0.00013972,4]
[352579822,1739177443275,-500.0,0.00015314,2]
[352579824,1739177443284,-500.0,0.00015451,2]
[352579826,1739177443293,-500.0,0.00015588,2]
[352579828,1739177443303,-500.0,0.00015725,2]
[352579830,1739177443313,-170.54759055,0.00015862,2]
[352579833,1739177443324,-329.45240945,0.00015862,2]
[352579835,1739177443333,-73.02559051,0.00015999,2]
[352579837,1739177443344,-104.50934973,0.00015999,2]
[352579839,1739177443353,-874.05065027,0.000198,2]
[352579852,1739177443469,-491.66,0.00014354,2]
[352579854,1739177443478,-26933.22416931,0.000198,2]
[352579856,1739177443489,-1860.25171584,0.000198,2]
[352579896,1739177443842,-1881.72135325,0.000198,2]
[352579900,1739177443870,-97983.29105044,0.000198,2]
[352580168,1739177446483,-1796.95771013,0.000198,2]
[352580175,1739177446537,-1081.490768,0.000198,2]
[352581255,1739177980107,408.21828507,0.000136,30]
[352581274,1739178632356,-3374.7975,8.699e-05,2]
[352581275,1739178632366,-8929.4133,8.836e-05,2]
[352581276,1739178632376,-15766.7925,8.836e-05,2]
[352581277,1739178632385,-150.0,8.972e-05,2]
[352581278,1739178632395,-150.0,9.869e-05,2]
[352581279,1739178632404,-498.9742365,0.0001,7]
[352581280,1739178632413,-575.84589645,0.00010062,2]
[352581281,1739178632424,-502.53,0.00010063,2]
[352581282,1739178632433,-505.49,0.00010066,2]
[352581283,1739178632442,-509.45,0.00010071,2]
[352581284,1739178632452,-507.74,0.00010076,2]
[352581285,1739178632461,-508.01,0.00010084,2]
[352581286,1739178632471,-499.0,0.00010095,2]
[352581287,1739178632480,-491.82,0.00010109,2]
[352581288,1739178632490,-494.63,0.00010128,2]
[352581289,1739178632500,-285.32,0.00010137,2]
[352581290,1739178632509,-497.2,0.00010147,2]
[352581291,1739178632519,-507.81,0.00010153,2]
[352581292,1739178632528,-498.12,0.00010163,2]
[352581293,1739178632538,-495.75,0.00010177,2]
[352581294,1739178632547,-500.0,0.000102,2]
[352581295,1739178632556,-499.71,0.000102,2]
[352581296,1739178632566,-501.13,0.00010236,2]
[352581297,1739178632575,-502.26,0.00010292,2]
[352581298,1739178632585,-492.63,0.00010382,2]
[352581299,1739178632594,-506.83,0.00010521,2]
[352581300,1739178632603,-505.44,0.00010737,2]
[352581301,1739178632613,-497.41,0.00011082,2]
[352581302,1739178632622,-390.84,0.000115,2]
[352581303,1739178632632,-501.85,0.00011619,2]
[352581304,1739178632641,-716.74,0.00012211,2]
[352581305,1739178632651,-495.5,0.00012472,2]
[352581306,1739178632660,-550.0,0.00013,2]
[352581307,1739178632669,-158.79,0.00013699,2]
[352581308,1739178632679,-500.0,0.00014207,2]
[352581309,1739178632689,-300.33724751,0.00014218,2]
[352581310,1739178632699,-156.01,0.0001429,2]
[352581311,1739178632710,-739.8,0.00014414,2]
[352581312,1739178632720,-716.74,0.00014475,2]
[352581313,1739178632730,-1300.0,0.00014811,2]
[352581315,1739178632739,-8550.0,0.00015,2]
[352581317,1739178632749,-600.0,0.00015,2]
[352581318,1739178632759,-500.0,0.00015292,2]
[352581319,1739178632769,-500.0,0.00015392,2]
[352581320,1739178632778,-500.0,0.00015492,2]
[352581321,1739178632788,-500.0,0.00015592,2]
[352581323,1739178632798,-500.0,0.00015692,2]
[352581325,1739178632807,-337.06,0.00015705,2]
[352581327,1739178632816,-500.0,0.00015792,2]
[352581329,1739178632825,-179.36,0.00015814,2]
[352581331,1739178632834,-200.0,0.0001584,2]
[352581333,1739178632843,-179.36,0.00015854,2]
[352581334,1739178632852,-500.0,0.00015892,2]
[352581336,1739178632862,-179.36,0.00015893,2]
[352581338,1739178632872,-500.0,0.00015907,2]
[352581340,1739178632882,-1000.0,0.00015907,2]
[352581342,1739178632892,-500.0,0.00015992,2]
[352581344,1739178632902,-726.10070933,0.00016,2]
[352581347,1739178632915,-293.91357313,0.00016,2]
[352581349,1739178632927,-979.98571754,0.00016,2]
[352581351,1739178632937,-3297.579647,0.0001601,2]
[352581353,1739178632947,-500.0,0.00016092,2]
[352581355,1739178632956,-1300.0,0.00016181,2]
[352581357,1739178632966,-500.0,0.00016192,2]
[352581359,1739178632976,-739.8,0.00016216,2]
[352581361,1739178632985,-500.0,0.00016292,2]
[352581364,1739178632997,-500.0,0.00016392,2]
[352581367,1739178633011,-269.34340681,0.00016437,2]
[352581370,1739178633022,-500.0,0.00016492,2]
[352581372,1739178633031,-500.0,0.00016592,2]
[352581375,1739178633042,-300.0,0.0001663,2]
[352581377,1739178633054,-619.75,0.00016658,30]
[352581379,1739178633065,-500.0,0.00016692,2]
[352581380,1739178633077,-1172.53,0.000167,7]
[352581383,1739178633088,-367.0,0.000167,2]
[352581384,1739178633098,-747.0,0.000167,2]
[352581386,1739178633108,-231.0,0.000167,2]
[352581388,1739178633118,-187.38,0.00016712,2]
[352581390,1739178633128,-716.74,0.00016739,2]
[352581391,1739178633137,-500.0,0.00016792,2]
[352581392,1739178633147,-285.32,0.00016813,2]
[352581393,1739178633156,-500.0,0.00016892,2]
[352581394,1739178633165,-500.0,0.00016992,2]
[352581395,1739178633174,-650.0,0.00017,2]
[352581396,1739178633183,-174.03,0.00017037,2]
[352581397,1739178633193,-1091.373,0.00017037,2]
[352581398,1739178633203,-500.0,0.00017092,2]
[352581399,1739178633213,-500.0,0.00017192,2]
[352581400,1739178633224,-1000.0,0.00017277,2]
[352581401,1739178633234,-500.0,0.00017292,2]
[352581402,1739178633243,-92.26441387,0.00017392,2]
[352581403,1739178633449,-407.73558613,0.00017392,2]
[352581404,1739178633458,-500.0,0.00017492,2]
[352581405,1739178633468,-1300.0,0.00017551,2]
[352581406,1739178633478,-500.0,0.00017592,2]
[352581407,1739178633488,-500.0,0.00017692,2]
[352581408,1739178633498,-500.0,0.00017792,2]
[352581409,1739178633508,-150.0,0.00017803,2]
[352581410,1739178633517,-500.0,0.00017892,2]
[352581411,1739178633527,-500.0,0.00017992,2]
[352581412,1739178633537,-300.0,0.00018,2]
[352581413,1739178633546,-3519.04989062,0.00018,2]
[352581414,1739178633561,-1305.0,0.00018,2]
[352581415,1739178633576,-4858.38509949,0.00018,2]
[352581416,1739178633591,-317.56500989,0.00018,2]
[352581417,1739178633601,-739.8,0.00018017,2]
[352581418,1739178633611,-2000.0,0.00018082,2]
[352581419,1739178633620,-200.0,0.00018082,2]
[352581420,1739178633630,-500.0,0.00018092,2]
[352581421,1739178633641,-500.0,0.00018192,2]
[352581422,1739178633654,-158.79,0.00018265,2]
[352581423,1739178633667,-500.0,0.00018292,2]
[352581424,1739178633679,-1000.0,0.00018373,2]
[352581425,1739178633691,-500.0,0.00018392,2]
[352581426,1739178633703,-500.0,0.00018492,2]
[352581427,1739178633713,-500.0,0.00018592,2]
[352581428,1739178633726,-154.54,0.000186,2]
[352581429,1739178633736,-500.0,0.00018647,2]
[352581430,1739178633748,-1300.0,0.00018647,2]
[352581431,1739178633759,-500.0,0.00018692,2]
[352581432,1739178633770,-2000.0,0.00018751,2]
[352581433,1739178633782,-150.0,0.00018792,2]
[352581434,1739178633793,-500.0,0.00018792,2]
[352581435,1739178633804,-500.0,0.00018892,2]
[352581436,1739178633815,-500.0,0.00018992,2]
[352581437,1739178633826,-700.0,0.00019,2]
[352581438,1739178633838,-716.74,0.00019003,2]
[352581439,1739178633849,-500.0,0.00019092,2]
[352581440,1739178633861,-150.0,0.00019178,2]
[352581441,1739178633873,-500.0,0.00019192,2]
[352581442,1739178633884,-619.75,0.00019242,30]
[352581443,1739178633896,-500.0,0.00019292,2]
[352581444,1739178633909,-1965.0,0.00019301,2]
[352581445,1739178633920,-500.0,0.00019392,2]
[352581446,1739178633932,-2000.0,0.0001942,2]
[352581447,1739178633944,-1000.0,0.00019469,2]
[352581448,1739178633956,-500.0,0.00019492,2]
[352581449,1739178633967,-205.28,0.00019494,2]
[352581450,1739178633978,-1965.0,0.000195,2]
[352581451,1739178633988,-150.0,0.00019549,2]
[352581452,1739178634006,-150.0,0.00019589,2]
[352581453,1739178634016,-500.0,0.00019592,2]
[352581454,1739178634028,-150.0,0.00019593,2]
[352581455,1739178634041,-550.6372048,0.00019602,2]
[352581456,1739178634053,-150.0,0.00019613,2]
[352581457,1739178634064,-301.42,0.00019616,2]
[352581458,1739178634076,-1000.0,0.00019624,2]
[352581459,1739178634087,-150.0,0.00019629,2]
[352581460,1739178634099,-150.0,0.0001963,2]
[352581461,1739178634111,-1000.0,0.00019633,2]
[352581462,1739178634122,-500.0,0.00019642,2]
[352581463,1739178634134,-2000.0,0.00019642,2]
[352581464,1739178634146,-500.0,0.00019642,2]
[352581465,1739178634157,-500.0,0.00019642,2]
[352581466,1739178634170,-200.0,0.00019642,2]
[352581467,1739178634181,-1000.0,0.00019655,2]
[352581468,1739178634192,-260.21385484,0.00019657,2]
[352581469,1739178634203,-150.0,0.00019657,2]
[352581470,1739178634214,-1000.0,0.00019676,2]
[352581471,1739178634226,-1000.0,0.00019676,2]
[352581472,1739178634236,-1000.0,0.00019679,2]
[352581473,1739178634249,-150.0,0.00019683,2]
[352581474,1739178634260,-1000.0,0.00019685,2]
[352581475,1739178634272,-1000.0,0.00019686,2]
[352581476,1739178634284,-614.51916189,0.0001969,2]
[352581477,1739178634295,-1292.11698916,0.0001969,2]
[352581478,1739178634306,-621.11825798,0.0001969,2]
[352581479,1739178634318,-174.49045985,0.0001969,2]
[352581480,1739178634328,-150.5182465,0.0001969,2]
[352581481,1739178634340,-288.4302673,0.0001969,3]
[352581482,1739178634350,-1292.11698908,0.0001969,2]
[352581483,1739178634362,-552.41117526,0.0001969,2]
[352581484,1739178634377,-739.70581382,0.0001969,2]
[352581485,1739178634387,-1292.11698908,0.00019691,2]
[352581486,1739178634398,-1292.11698908,0.00019691,2]
[352581487,1739178634410,-1292.11698908,0.00019691,2]
[352581488,1739178634420,-1292.11698908,0.00019691,2]
[352581489,1739178634431,-1292.11698908,0.00019692,2]
[352581490,1739178634442,-1292.11698908,0.00019692,2]
[352581491,1739178634454,-1292.11698908,0.00019692,2]
[352581492,1739178634465,-500.0,0.00019692,2]
[352581493,1739178634476,-150.0,0.00019697,2]
[352581494,1739178634488,-1000.0,0.00019698,2]
[352581495,1739178634501,-261.00007548,0.00019699,2]
[352581496,1739178634512,-1965.0,0.00019699,2]
[352581497,1739178634524,-3000.0,0.000197,2]
[352581498,1739178634535,-1500.0,0.000197,2]
[352581499,1739178634546,-4061.09,0.000197,31]
[352581500,1739178634556,-4061.09,0.000197,31]
[352581501,1739178634567,-4061.09,0.000197,31]
[352581502,1739178634577,-4061.09,0.000197,31]
[352581503,1739178634588,-4061.09,0.000197,31]
[352581504,1739178634599,-4061.09,0.000197,31]
[352581505,1739178634609,-3778.08587458,0.000197,31]
[352581506,1739178634623,-283.00412542,0.000197,31]
[352581507,1739178634634,-60.30750663,0.000197,31]
[352581508,1739178634661,-4000.78249337,0.000197,31]
[352581509,1739178634671,-4061.09,0.000197,31]
[352581510,1739178634682,-4061.09,0.000197,31]
[352581511,1739178634691,-4061.09,0.000197,31]
[352581512,1739178634701,-4061.09,0.000197,31]
[352581513,1739178634711,-4061.09,0.000197,31]
[352581514,1739178634720,-4061.09,0.000197,31]
[352581515,1739178634730,-4061.09,0.000197,31]
[352581516,1739178634740,-4061.09,0.000197,31]
[352581517,1739178634752,-172.55947856,0.000197,2]
[352581518,1739178634763,-261.00007545,0.00019733,2]
[352581519,1739178634774,-172.55947854,0.00019733,2]
[352581520,1739178634785,-1300.0,0.00019743,2]
[352581521,1739178634796,-621.11825798,0.00019745,2]
[352581522,1739178634807,-174.49045984,0.00019745,2]
[352581523,1739178634818,-288.43026728,0.00019745,3]
[352581524,1739178634828,-1000.0,0.00019746,2]
[352581525,1739178634838,-1000.0,0.00019755,2]
[352581526,1739178634848,-206.9234054,0.00019759,2]
[352581527,1739178634860,-399.30762229,0.00019759,2]
[352581528,1739178634870,-150.0,0.00019764,2]
[352581529,1739178634881,-261.00007545,0.00019766,2]
[352581530,1739178634891,-172.55947854,0.00019767,2]
[352581531,1739178634902,-1000.0,0.00019768,2]
[352581532,1739178634912,-342.96086845,0.00019769,3]
[352581533,1739178634923,-500.0,0.00019769,3]
[352581534,1739178634934,-500.0,0.00019769,3]
[352581535,1739178634944,-500.0,0.00019769,3]
[352581536,1739178634954,-400.0,0.0001977,2]
[352581537,1739178634965,-400.0,0.0001977,2]
[352581538,1739178634975,-155.67514125,0.0001977,2]
[352581539,1739178634988,-144.32485875,0.0001977,2]
[352581540,1739178635003,-216.11189105,0.0001977,2]
[352581541,1739178635023,-83.88810895,0.0001977,2]
[352581542,1739178635034,-180.01188966,0.0001977,3]
[352581543,1739178635048,-4919.98811034,0.0001977,3]
[352581544,1739178635059,-5100.0,0.0001977,33]
[352581545,1739178635069,-5100.0,0.0001977,34]
[352581546,1739178635079,-3166.35640417,0.0001977,6]
[352581547,1739178635091,-1933.64359583,0.0001977,6]
[352581548,1739178635101,-831.19186952,0.00019772,2]
[352581549,1739178635112,-1273.3784205,0.00019772,2]
[352581728,1739178640362,-1548.04025834,0.00019772,2]
[352581730,1739178640372,-500.0,0.00019773,2]
[352581732,1739178640382,-500.0,0.00019773,2]
[352581733,1739178640392,-500.0,0.00019773,2]
[352581735,1739178640403,-32165.26699243,0.0001978,3]
[352582351,1739178646521,-264.99,0.00019772,2]
[352582368,1739178646679,-240.16,0.00019772,2]
[352582370,1739178646690,-738.94350688,0.0001978,3]
[352583447,1739178806755,2668.12,0.0002,120]
[352583459,1739179660774,1229.6,0.0002,120]
[352583474,1739179831526,-1026.73024974,8.836e-05,2]
[352583475,1739179831585,-697.95946466,8.836e-05,2]
[352583476,1739179831596,-6456.9527856,8.836e-05,2]
[352583477,1739179831606,-300.0,8.972e-05,2]
[352583478,1739179831615,-1703.2507897,8.973e-05,2]
[352583479,1739179831649,-879.62645127,8.973e-05,2]
[352583480,1739179831820,-1498.78949728,8.973e-05,2]
[352583481,1739179831832,-576.15376175,8.973e-05,2]
[352583482,1739179831842,-200.0,9.2e-05,3]
[352583483,1739179831852,-406.55715538,9.3e-05,3]
[352583484,1739179831863,-93.44284462,9.3e-05,3]
[352583485,1739179831872,-1086.5926008,9.3e-05,2]
[352583486,1739179831887,-350.53617192,9.3e-05,2]
[352583487,1739179831896,-800.0,9.4e-05,3]
[352583488,1739179831905,-1100.0,9.5e-05,3]
[352583489,1739179831914,-250.0,9.57e-05,2]
[352583490,1739179831924,-1400.0,9.6e-05,3]
[352583491,1739179831933,-200.0,9.7e-05,3]
[352583492,1739179831943,-200.0,9.8e-05,3]
[352583493,1739179831952,-200.0,9.9e-05,3]
[352583494,1739179831961,-150.0,9.998e-05,2]
[352583495,1739179831970,-500.0,9.999e-05,2]
[352583496,1739179831979,-500.0,9.999e-05,2]
[352583497,1739179831988,-604.35,9.999e-05,2]